fUSD/lending_fUSD_20260309
["ID","MTS","AMOUNT","RATE_DAILY","PERIOD"]
[408063919,1773094244305,-500.0,0.00019999,2]
[408063920,1773094244314,-500.0,0.00019999,2]
[408063921,1773094244324,-500.0,0.00019999,2]
[408063922,1773094244334,-500.0,0.00019999,2]
[408063923,1773094244344,-500.0,0.00019999,2]
[408063924,1773094244353,-329.72,0.00019999,2]
[408063925,1773094244363,-500.0,0.00019999,2]
[408063926,1773094244372,-500.0,0.00019999,2]
[408063927,1773094244382,-500.0,0.00019999,2]
[408063928,1773094244391,-500.0,0.00019999,2]
[408063929,1773094244401,-500.0,0.00019999,2]
[408063930,1773094244410,-500.0,0.00019999,2]
[408063931,1773094244419,-510.05,0.00019999,2]
[408063932,1773094244429,-500.0,0.00019999,2]
[408063933,1773094244439,-500.0,0.00019999,2]
[408063934,1773094244448,-500.0,0.00019999,2]
[408063935,1773094244457,-500.0,0.00019999,2]
[408063936,1773094244467,-500.0,0.00019999,2]
[408063937,1773094244477,-500.0,0.00019999,2]
[408063938,1773094244487,-500.0,0.00019999,2]
[408063939,1773094244497,-500.0,0.00019999,2]
[408063940,1773094244507,-532.85507094,0.00019999,2]
[408063941,1773094244516,-500.0,0.00019999,2]
[408063942,1773094244526,-500.0,0.00019999,2]
[408063943,1773094244536,-500.0,0.00019999,2]
[408063944,1773094244547,-500.0,0.00019999,2]
[408063945,1773094244559,-391.67175931,0.00019999,2]
[408063946,1773094244569,-6583.61037316,0.00019999,2]
[408063947,1773094244578,-1159.05776479,0.00019999,5]
[408063948,1773094244590,-1159.05776479,0.00019999,5]
[408063949,1773094244599,-1159.0577648,0.00019999,5]
[408063950,1773094244609,-500.0,0.00019999,2]
[408063951,1773094244619,-500.0,0.00019999,2]
[408063952,1773094244630,-500.0,0.00019999,2]
[408063953,1773094244639,-500.0,0.00019999,2]
[408063954,1773094244649,-500.0,0.00019999,2]
[408063955,1773094244659,-500.0,0.00019999,2]
[408063956,1773094244668,-500.0,0.00019999,2]
[408063957,1773094244678,-500.0,0.00019999,2]
[408063958,1773094244687,-500.0,0.00019999,2]
[408063959,1773094244697,-507.64759374,0.00019999,2]
[408063960,1773094244707,-500.0,0.00019999,2]
[408063961,1773094244716,-500.0,0.00019999,2]
[408063962,1773094244725,-500.0,0.00019999,2]
[408063963,1773094244735,-500.0,0.00019999,2]
[408063964,1773094244745,-500.0,0.00019999,2]
[408063965,1773094244754,-500.0,0.00019999,2]
[408063966,1773094244763,-500.0,0.00019999,2]
[408063967,1773094244773,-500.0,0.00019999,2]
[408063968,1773094244783,-649.4,0.00019999,2]
[408063969,1773094245080,-500.0,0.00019999,2]
[408063970,1773094245090,-500.0,0.00019999,2]
[408063971,1773094245099,-500.0,0.00019999,2]
[408063972,1773094245109,-500.0,0.00019999,2]
[408063973,1773094245118,-500.0,0.00019999,2]
[408063974,1773094245128,-500.0,0.00019999,2]
[408063975,1773094245137,-500.0,0.00019999,2]
[408063976,1773094245147,-500.0,0.00019999,2]
[408063977,1773094245156,-500.0,0.00019999,2]
[408063978,1773094245166,-500.0,0.00019999,2]
[408063979,1773094245175,-500.0,0.00019999,2]
[408063980,1773094245184,-500.0,0.00019999,2]
[408063981,1773094245194,-500.0,0.00019999,2]
[408063982,1773094245203,-500.0,0.00019999,2]
[408063983,1773094245212,-500.0,0.00019999,2]
[408063984,1773094245221,-500.0,0.00019999,2]
[408063985,1773094245231,-158.20652868,0.00019999,2]
[408063986,1773094245241,-645.65088964,0.00019999,2]
[408063987,1773094245254,-1097.1,0.00019999,2]
[408063988,1773094245264,-1073.19,0.00019999,2]
[408063989,1773094245273,-1097.1,0.00019999,2]
[408063990,1773094245282,-1073.19,0.00019999,2]
[408063991,1773094245292,-1097.1,0.00019999,2]
[408063992,1773094245301,-1073.19,0.00019999,2]
[408063993,1773094245310,-1097.1,0.00019999,2]
[408063994,1773094245320,-1097.1,0.00019999,2]
[408063995,1773094245331,-1073.19,0.00019999,2]
[408063996,1773094245340,-1073.19,0.00019999,2]
[408063997,1773094245350,-1097.1,0.00019999,2]
[408063998,1773094245360,-1073.19,0.00019999,2]
[408063999,1773094245371,-1097.1,0.00019999,2]
[408064000,1773094245381,-1073.19,0.00019999,2]
[408064001,1773094245391,-1097.1,0.00019999,2]
[408064002,1773094245401,-1073.19,0.00019999,2]
[408064003,1773094245412,-1097.1,0.00019999,2]
[408064004,1773094245424,-1073.19,0.00019999,2]
[408064005,1773094245434,-1097.1,0.00019999,2]
[408064006,1773094245444,-1097.1,0.00019999,2]
[408064007,1773094245457,-1073.19,0.00019999,2]
[408064008,1773094245466,-1097.1,0.00019999,2]
[408064009,1773094245476,-1073.19,0.00019999,2]
[408064010,1773094245487,-1073.19,0.00019999,2]
[408064011,1773094245498,-1073.19,0.00019999,2]
[408064012,1773094245508,-1097.1,0.00019999,2]
[408064013,1773094245518,-1073.19,0.00019999,2]
[408064014,1773094245530,-1097.1,0.00019999,2]
[408064015,1773094245541,-1073.19,0.00019999,2]
[408064016,1773094245554,-1097.1,0.00019999,2]
[408064017,1773094245563,-1073.19,0.00019999,2]
[408064018,1773094245573,-1097.1,0.00019999,2]
[408064019,1773094245583,-1073.19,0.00019999,2]
[408064020,1773094245595,-1097.1,0.00019999,2]
[408064021,1773094245606,-1073.37400887,0.00019999,2]
[408064022,1773094245616,-1097.1,0.00019999,2]
[408064023,1773094245625,-1097.1,0.00019999,2]
[408064024,1773094245637,-1097.1,0.00019999,2]
[408064025,1773094245647,-1097.1,0.00019999,2]
[408064026,1773094245659,-1097.27805738,0.00019999,2]
[408064027,1773094245669,-500.0,0.00019999,2]
[408064028,1773094245680,-500.0,0.00019999,2]
[408064029,1773094245689,-500.0,0.00019999,2]
[408064030,1773094245699,-500.0,0.00019999,2]
[408064031,1773094245709,-500.0,0.00019999,2]
[408064032,1773094245718,-500.0,0.00019999,2]
[408064033,1773094245728,-500.0,0.00019999,2]
[408064034,1773094245737,-500.0,0.00019999,2]
[408064035,1773094245747,-500.0,0.00019999,2]
[408064036,1773094245758,-511.13749879,0.00019999,2]
[408064037,1773094245768,-2637.9,0.00019999,2]
[408064038,1773094245777,-2637.9,0.00019999,2]
[408064039,1773094245787,-2637.9,0.00019999,2]
[408064040,1773094245797,-2637.9,0.00019999,2]
[408064041,1773094245807,-500.0,0.00019999,2]
[408064042,1773094245818,-2637.9,0.00019999,2]
[408064043,1773094245828,-500.0,0.00019999,2]
[408064044,1773094245838,-2637.9,0.00019999,2]
[408064045,1773094245849,-500.0,0.00019999,2]
[408064046,1773094245858,-2637.9,0.00019999,2]
[408064047,1773094245868,-500.0,0.00019999,2]
[408064048,1773094245878,-2637.9,0.00019999,2]
[408064050,1773094245888,-500.0,0.00019999,2]
[408064051,1773094245897,-2637.9,0.00019999,2]
[408064052,1773094245907,-500.0,0.00019999,2]
[408064053,1773094245916,-2637.9,0.00019999,2]
[408064054,1773094245926,-500.0,0.00019999,2]
[408064055,1773094245935,-2637.9,0.00019999,2]
[408064056,1773094245946,-500.0,0.00019999,2]
[408064057,1773094245956,-2637.9,0.00019999,2]
[408064058,1773094245967,-500.0,0.00019999,2]
[408064059,1773094245978,-2637.9,0.00019999,2]
[408064060,1773094245987,-500.0,0.00019999,2]
[408064061,1773094245998,-2637.9,0.00019999,2]
[408064062,1773094246007,-500.0,0.00019999,2]
[408064063,1773094246017,-2637.9,0.00019999,2]
[408064064,1773094246027,-500.0,0.00019999,2]
[408064065,1773094246047,-2637.9,0.00019999,2]
[408064066,1773094246058,-500.0,0.00019999,2]
[408064067,1773094246068,-2638.06063009,0.00019999,2]
[408064068,1773094246078,-500.0,0.00019999,2]
[408064069,1773094246088,-500.0,0.00019999,2]
[408064070,1773094246098,-500.0,0.00019999,2]
[408064071,1773094246107,-232.35629648,0.00019999,2]
[408064072,1773094246118,-500.0,0.00019999,2]
[408064073,1773094246128,-500.0,0.00019999,2]
[408064074,1773094246138,-551.32,0.00019999,2]
[408064075,1773094246147,-500.0,0.00019999,2]
[408064076,1773094246157,-500.0,0.00019999,2]
[408064077,1773094246170,-500.0,0.00019999,2]
[408064078,1773094246181,-508.82940368,0.00019999,2]
[408064079,1773094246192,-500.0,0.00019999,2]
[408064080,1773094246202,-500.0,0.00019999,2]
[408064081,1773094246213,-500.0,0.00019999,2]
[408064082,1773094246222,-500.0,0.00019999,2]
[408064083,1773094246232,-255.94966854,0.00019999,2]
[408064084,1773094246242,-2227.0,0.0002,2]
[408064085,1773094246253,-3317326.2051985,0.0002,2]
[408064086,1773094246263,-4066.0,0.0002,2]
[408064087,1773094246274,-188.9016417,0.0002,2]
[408064088,1773094246285,-261.2502933,0.0002,2]
[408064089,1773094246295,-192.24167096,0.0002,2]
[408064090,1773094246306,-4267464.06953932,0.0002,2]
[408064091,1773094247757,-555.15882256,0.00018804,2]
[408064092,1773094247766,-7925.1045792,0.0002,2]
[408064093,1773094247777,-2727.04888317,0.0002,2]
[408064094,1773094247788,-11985.45716706,0.0002,2]
[408064095,1773094247851,-4321.4757446,0.0002,2]
[408064096,1773094247862,-777.8506648,0.0002,2]
[408064097,1773094247888,-387.00607983,0.0002,2]
[408064098,1773094462771,970.50124629,0.0002,120]
[408064107,1773095431729,-200.0,0.000149,2]
[408064108,1773095431739,-114.57995572,0.0001495,2]
[408064109,1773095431750,-385.42004428,0.0001495,2]
[408064110,1773095431760,-250.0,0.00015,2]
[408064111,1773095431770,-764.99473768,0.00015,30]
[408064112,1773095431779,-166.35,0.00015032,2]
[408064113,1773095431789,-319.03768952,0.00015557,2]
[408064114,1773095431800,-1321.58232096,0.00015557,2]
[408064115,1773095431815,-76.68998952,0.00015557,2]
[408064116,1773095431825,-1406.926269,0.0001615,7]
[408064117,1773095431834,-1200.0,0.00016389,2]
[408064118,1773095431843,-500.0,0.0001639,2]
[408064119,1773095431853,-250.0,0.0001639,2]
[408064120,1773095431862,-300.0,0.0001639,2]
[408064121,1773095431872,-250.0,0.0001639,2]
[408064122,1773095431885,-418.80293382,0.0001639,2]
[408064123,1773095431896,-3524.85067479,0.0001639,2]
[408064124,1773095431906,-300.0,0.0001639,2]
[408064125,1773095431915,-300.0,0.0001639,2]
[408064126,1773095431926,-466.41886332,0.00016472,2]
[408064127,1773095431935,-206.05467646,0.00016498,2]
[408064128,1773095431947,-93.94532354,0.00016498,2]
[408064129,1773095431959,-162.04579583,0.000165,2]
[408064131,1773095431968,-365.14647161,0.000165,2]
[408064132,1773095431980,-234.85352839,0.000165,2]
[408064133,1773095431991,-500.0,0.000165,2]
[408064134,1773095432001,-195.0,0.000165,2]
[408064135,1773095432010,-263.27,0.000165,2]
[408064136,1773095432019,-300.0,0.000165,2]
[408064137,1773095432028,-195.0,0.000165,2]
[408064138,1773095432038,-195.0,0.000165,2]
[408064139,1773095432047,-179.49839145,0.000165,2]
[408064140,1773095432057,-600.0,0.000165,2]
[408064141,1773095432066,-166.49,0.00016712,2]
[408064142,1773095432076,-503.0,0.00017,2]
[408064143,1773095432086,-550.0,0.00017213,2]
[408064144,1773095432095,-150.0,0.00017214,7]
[408064145,1773095432104,-166.204041,0.00017214,7]
[408064147,1773095432114,-182.408083,0.00017214,7]
[408064149,1773095432124,-198.612124,0.00017214,7]
[408064151,1773095432133,-214.816166,0.00017214,7]
[408064153,1773095432143,-231.020207,0.00017214,7]
[408064155,1773095432152,-247.224249,0.00017214,7]
[408064157,1773095432162,-263.428291,0.00017214,7]
[408064158,1773095432171,-279.632332,0.00017214,7]
[408064159,1773095432181,-295.836374,0.00017214,7]
[408064160,1773095432191,-158.17,0.00017435,2]
[408064161,1773095432200,-500.0,0.00017562,2]
[408064162,1773095432211,-166.66,0.00017758,2]
[408064163,1773095432222,-281.0,0.00017758,2]
[408064164,1773095432232,-1680.0,0.00018001,2]
[408064165,1773095432244,-420.0,0.00018029,2]
[408064166,1773095432253,-166.66,0.00018132,2]
[408064167,1773095432262,-171.87038139,0.000182,2]
[408064168,1773095432272,-150.0,0.00018206,7]
[408064169,1773095432281,-0.08557476,0.00018206,7]
[408064170,1773095432294,-151.06564624,0.00018206,7]
[408064171,1773095432303,-152.302443,0.00018206,7]
[408064172,1773095432314,-153.453664,0.00018206,7]
[408064173,1773095432323,-154.604886,0.00018206,7]
[408064174,1773095432332,-52.52665933,0.00018206,7]
[408064175,1773095432343,-103.22944867,0.00018206,7]
[408064176,1773095432353,-156.907329,0.00018206,7]
[408064177,1773095432363,-158.058551,0.00018206,7]
[408064178,1773095432372,-159.209772,0.00018206,7]
[408064179,1773095432382,-160.360994,0.00018206,7]
[408064180,1773095432392,-935.0,0.00018315,2]
[408064181,1773095432401,-500.0,0.00018356,7]
[408064182,1773095432410,-151.32124554,0.00018356,7]
[408064183,1773095432427,-348.67875446,0.00018356,7]
[408064184,1773095432438,-500.0,0.00018356,7]
[408064185,1773095432448,-166.66,0.00018506,2]
[408064186,1773095432458,-1552.28,0.00018531,2]
[408064187,1773095432467,-1000.0,0.00018532,2]
[408064188,1773095432477,-1000.0,0.00018532,2]
[408064189,1773095432487,-150.99,0.00018533,2]
[408064190,1773095432498,-299.99,0.00018533,4]
[408064191,1773095432509,-499.99,0.00018533,2]
[408064192,1773095432519,-18267.0,0.00018533,2]
[408064193,1773095432528,-5318.74,0.00018533,2]
[408064194,1773095432538,-150.99,0.00018533,2]
[408064195,1773095432547,-7075.99,0.00018533,2]
[408064196,1773095432556,-6576.98,0.00018533,2]
[408064197,1773095432566,-11323.77,0.00018533,2]
[408064198,1773095432575,-2000.0,0.00018581,2]
[408064199,1773095432584,-150.0,0.00018618,2]
[408064200,1773095432593,-286.12,0.00018648,2]
[408064201,1773095432603,-503.0,0.00018853,3]
[408064202,1773095432614,-166.66,0.0001888,2]
[408064203,1773095432623,-200.0,0.00018881,2]
[408064204,1773095432633,-1000.0,0.00018999,2]
[408064205,1773095432642,-174.61919141,0.00018999,2]
[408064206,1773095432651,-500.0,0.00019,2]
[408064207,1773095432662,-1000.0,0.00019165,2]
[408064208,1773095432672,-1000.0,0.00019178,2]
[408064209,1773095432682,-1642.39446644,0.00019239,2]
[408064210,1773095432691,-6750.3714,0.00019239,2]
[408064211,1773095432704,-166.66,0.00019253,2]
[408064212,1773095432714,-1000.0,0.00019265,2]
[408064213,1773095432724,-1000.0,0.00019338,2]
[408064214,1773095432734,-9999.99,0.00019339,2]
[408064215,1773095432746,-2787.04,0.00019339,2]
[408064216,1773095432756,-29999.99,0.00019339,2]
[408064217,1773095432766,-1758.657836,0.0001938,7]
[408064218,1773095432775,-1067.55514029,0.0001942,2]
[408064219,1773095432785,-1000.0,0.00019452,2]
[408064220,1773095432795,-2000.0,0.000195,2]
[408064221,1773095432805,-1000.0,0.00019547,2]
[408064222,1773095432815,-222.04705789,0.00019547,2]
[408064223,1773095432824,-917.98947962,0.000196,2]
[408064224,1773095432836,-500.0,0.00019626,2]
[408064225,1773095432855,-500.0,0.00019626,2]
[408064226,1773095432866,-500.0,0.00019626,2]
[408064227,1773095432877,-166.66,0.00019627,2]
[408064228,1773095432894,-3208.9362,0.00019636,2]
[408064229,1773095432909,-3756.4619,0.00019636,2]
[408064230,1773095432918,-587.0,0.00019701,2]
[408064231,1773095432928,-500.0,0.00019722,2]
[408064232,1773095432938,-250.0,0.00019722,2]
[408064233,1773095432947,-250.0,0.00019722,2]
[408064234,1773095432956,-541.0,0.00019722,2]
[408064235,1773095432966,-500.0,0.00019722,2]
[408064236,1773095432975,-250.0,0.00019722,2]
[408064237,1773095432985,-150.0,0.00019722,2]
[408064238,1773095432996,-150.0,0.00019722,2]
[408064239,1773095433006,-1000.0,0.00019726,2]
[408064240,1773095433015,-366.9,0.00019736,2]
[408064241,1773095433025,-250.0,0.0001974,2]
[408064242,1773095433034,-2351.0,0.00019772,2]
[408064243,1773095433043,-172.87392778,0.00019772,2]
[408064244,1773095433052,-500.0,0.00019777,2]
[408064245,1773095433063,-541.0,0.00019777,2]
[408064246,1773095433073,-500.0,0.00019777,2]
[408064247,1773095433082,-296.0,0.00019777,2]
[408064248,1773095433092,-150.0,0.00019777,2]
[408064249,1773095433102,-250.0,0.00019793,2]
[408064250,1773095433111,-2500.0,0.000198,2]
[408064251,1773095433121,-250.0,0.00019813,2]
[408064252,1773095433130,-500.0,0.00019832,2]
[408064253,1773095433140,-541.0,0.00019832,2]
[408064254,1773095433150,-388.82005991,0.00019832,2]
[408064255,1773095433159,-200.0,0.00019832,2]
[408064256,1773095433168,-250.0,0.00019847,2]
[408064257,1773095433178,-250.0,0.00019856,2]
[408064258,1773095433188,-365.49715085,0.00019862,2]
[408064259,1773095433198,-365.49715085,0.00019874,2]
[408064260,1773095433207,-2271.076,0.00019885,2]
[408064261,1773095433217,-168.605,0.00019885,2]
[408064262,1773095433226,-500.0,0.00019886,2]
[408064263,1773095433236,-541.0,0.00019886,2]
[408064264,1773095433247,-365.49715085,0.00019887,2]
[408064265,1773095433256,-7804.79,0.0001989,2]
[408064266,1773095433266,-250.0,0.00019896,2]
[408064267,1773095433275,-500.0,0.00019898,2]
[408064268,1773095433285,-10000.0,0.00019899,2]
[408064269,1773095433294,-365.49715085,0.000199,2]
[408064270,1773095433304,-5000.0,0.000199,2]
[408064271,1773095433313,-1505.21619488,0.000199,2]
[408064272,1773095433322,-218.8354796,0.000199,2]
[408064273,1773095433332,-52491.06783744,0.000199,2]
[408064274,1773095433344,-250.0,0.00019931,2]
[408064275,1773095433354,-250.0,0.00019935,2]
[408064276,1773095433363,-151.0,0.00019936,2]
[408064277,1773095433374,-500.0,0.00019941,2]
[408064278,1773095433384,-541.0,0.00019941,2]
[408064279,1773095433393,-151.0,0.00019968,2]
[408064280,1773095433403,-400.0,0.0001997,2]
[408064281,1773095433413,-400.0,0.0001997,2]
[408064282,1773095433423,-400.0,0.0001997,2]
[408064283,1773095433432,-400.0,0.0001997,2]
[408064284,1773095433443,-402.18256312,0.0001997,2]
[408064285,1773095433454,-500.0,0.00019972,2]
[408064286,1773095433464,-500.0,0.00019972,2]
[408064287,1773095433474,-500.0,0.00019972,2]
[408064288,1773095433483,-500.0,0.00019972,2]
[408064289,1773095433494,-500.0,0.00019972,2]
[408064290,1773095433503,-500.0,0.00019972,2]
[408064291,1773095433514,-500.0,0.00019972,2]
[408064292,1773095433523,-500.0,0.00019972,2]
[408064293,1773095433534,-4910.0,0.00019973,2]
[408064294,1773095433545,-500.0,0.00019973,2]
[408064295,1773095433555,-500.0,0.00019973,2]
[408064296,1773095433565,-250.0,0.00019973,2]
[408064297,1773095433575,-7804.79,0.0001999,2]
[408064298,1773095433585,-500.0,0.00019996,2]
[408064299,1773095433595,-541.0,0.00019996,2]
[408064300,1773095433605,-500.0,0.00019998,2]
[408064301,1773095433614,-500.0,0.00019998,2]
[408064302,1773095433623,-500.0,0.00019998,2]
[408064303,1773095433632,-500.0,0.00019998,2]
[408064304,1773095433642,-500.0,0.00019998,2]
[408064305,1773095433652,-500.0,0.00019998,2]
[408064306,1773095433661,-300.91812749,0.00019998,2]
[408064307,1773095433671,-500.0,0.00019999,2]
[408064308,1773095433682,-500.0,0.00019999,2]
[408064309,1773095433694,-500.0,0.00019999,2]
[408064310,1773095433703,-500.0,0.00019999,2]
[408064311,1773095433712,-500.0,0.00019999,2]
[408064312,1773095433722,-500.0,0.00019999,2]
[408064313,1773095433731,-500.0,0.00019999,2]
[408064314,1773095433741,-500.0,0.00019999,2]
[408064315,1773095433751,-500.0,0.00019999,2]
[408064316,1773095433760,-500.0,0.00019999,2]
[408064317,1773095433770,-263.81956629,0.00019999,2]
[408064318,1773095433780,-500.0,0.00019999,2]
[408064319,1773095433789,-500.0,0.00019999,2]
[408064320,1773095433799,-500.0,0.00019999,2]
[408064321,1773095433808,-500.0,0.00019999,2]
[408064322,1773095433819,-500.0,0.00019999,2]
[408064323,1773095433829,-500.0,0.00019999,2]
[408064324,1773095433838,-500.0,0.00019999,2]
[408064325,1773095433847,-500.0,0.00019999,2]
[408064326,1773095433860,-500.0,0.00019999,2]
[408064327,1773095433869,-266.08,0.00019999,2]
[408064328,1773095433878,-500.0,0.00019999,2]
[408064329,1773095433892,-500.0,0.00019999,2]
[408064330,1773095433901,-500.0,0.00019999,2]
[408064331,1773095433911,-500.0,0.00019999,2]
[408064332,1773095433920,-500.0,0.00019999,2]
[408064333,1773095433930,-252.59,0.00019999,2]
[408064334,1773095433939,-624.32,0.00019999,2]
[408064335,1773095433948,-624.32,0.00019999,2]
[408064336,1773095433957,-624.32,0.00019999,2]
[408064337,1773095433968,-624.32,0.00019999,2]
[408064338,1773095433977,-624.32,0.00019999,2]
[408064339,1773095433986,-624.32,0.00019999,2]
[408064340,1773095433996,-624.32,0.00019999,2]
[408064341,1773095434005,-624.32,0.00019999,2]
[408064342,1773095434014,-624.32,0.00019999,2]
[408064343,1773095434023,-624.32,0.00019999,2]
[408064344,1773095434032,-624.32,0.00019999,2]
[408064345,1773095434041,-624.32,0.00019999,2]
[408064346,1773095434050,-624.32,0.00019999,2]
[408064347,1773095434059,-624.32,0.00019999,2]
[408064348,1773095434072,-624.32,0.00019999,2]
[408064349,1773095434081,-624.32,0.00019999,2]
[408064350,1773095434090,-624.32,0.00019999,2]
[408064351,1773095434099,-624.32,0.00019999,2]
[408064352,1773095434108,-624.32,0.00019999,2]
[408064353,1773095434117,-624.32,0.00019999,2]
[408064354,1773095434126,-624.32,0.00019999,2]
[408064355,1773095434135,-624.32,0.00019999,2]
[408064356,1773095434144,-624.32,0.00019999,2]
[408064357,1773095434154,-624.39794643,0.00019999,2]
[408064358,1773095434162,-345.54771501,0.00019999,2]
[408064359,1773095434172,-2031.0,0.0002,2]
[408064360,1773095434181,-1624.0,0.0002,2]
[408064361,1773095434191,-150.0,0.0002,2]
[408064362,1773095434201,-1000.0,0.0002,7]
[408064363,1773095434210,-67219.91750277,0.0002,2]
[408064364,1773095434223,-817.79588592,0.0002,2]
[408064365,1773095434234,-1147.18000044,0.0002,2]
[408064366,1773095434246,-278.617552,0.0002,2]
[408064367,1773095434257,-324.01857318,0.0002,2]
[408064368,1773095434274,-12153.3876991,0.0002,2]
[408064369,1773095434285,-924.05253866,0.0002,2]
[408064370,1773095434517,-3298.87374977,0.0002,2]
[408064371,1773095434529,-861.64940807,0.0002,2]
[408064372,1773095434540,-320.65660765,0.0002,2]
[408064373,1773095434551,-625.6194234,0.0002,2]
[408064374,1773095434562,-3935.87063297,0.0002,2]
[408064382,1773095437899,-490.38423648,0.0002,2]
[408064403,1773095440473,-1000.0,0.00019799,2]
[408064404,1773095440483,-3834.33074672,0.0002,2]
[408064588,1773095445723,-1646.67,0.00019465,2]
[408064589,1773095445732,-7912.92980664,0.0002,2]
[408064590,1773095445900,-412.24174738,0.0002,2]
[408064591,1773095445911,-149042.92306696,0.0002,2]
[408064599,1773096406834,2487.51,0.00014215,2]
[408064600,1773096606071,194.12,8.857e-05,2]
[408064601,1773096606316,194.12,9.323e-05,2]
[408064602,1773096606550,194.12,9.789e-05,2]
[408064603,1773096606776,194.12,0.00010256,2]
[408064604,1773096607044,194.12,0.00010722,2]
[408064605,1773096607270,194.12,0.00011188,2]
[408064606,1773096607492,194.12,0.00011654,2]
[408064607,1773096607707,194.12,0.0001212,2]
[408064608,1773096607906,194.12,0.00012586,2]
[408064609,1773096608150,194.12,0.00013053,2]
[408064610,1773096608390,194.12,0.00013519,2]
[408064611,1773096608608,194.12,0.00013985,2]
[408064628,1773096632002,-194.12,0.00014451,2]
[408064630,1773096632012,-194.12,0.00014917,2]
[408064632,1773096632025,-393.74694337,0.00015,30]
[408064633,1773096632066,-256.25305663,0.00015,30]
[408064634,1773096632077,-2694.93725339,0.0001519,3]
[408064635,1773096632087,-194.12,0.00015383,2]
[408064636,1773096632097,-1815.0,0.000154,5]
[408064637,1773096632107,-194.12,0.00015849,2]
[408064638,1773096632117,-275.16940009,0.00015916,2]
[408064639,1773096632127,-1516.0,0.00015916,2]
[408064640,1773096632138,-160.0,0.00015916,2]
[408064641,1773096632148,-194.12,0.00016316,2]
[408064642,1773096632158,-300.0,0.00016499,2]
[408064643,1773096632167,-1200.0,0.00016499,2]
[408064644,1773096632177,-195.0,0.000165,2]
[408064645,1773096632186,-195.0,0.000165,2]
[408064646,1773096632196,-195.0,0.000165,2]
[408064647,1773096632206,-195.0,0.000165,2]
[408064648,1773096632215,-195.0,0.000165,2]
[408064649,1773096632226,-2500.0,0.000165,2]
[408064650,1773096632235,-2500.0,0.000165,2]
[408064651,1773096632245,-2500.0,0.000165,2]
[408064652,1773096632261,-2500.0,0.000165,2]
[408064653,1773096632271,-2500.0,0.000165,2]
[408064655,1773096632282,-194.12,0.00016782,2]
[408064656,1773096632292,-5339.43248079,0.00016927,3]
[408064657,1773096632304,-503.0,0.00017,2]
[408064658,1773096632314,-150.0,0.00017154,2]
[408064659,1773096632324,-194.12,0.00017248,2]
[408064660,1773096632333,-735.65741,0.00017651,7]
[408064661,1773096632344,-194.12,0.00017714,2]
[408064662,1773096632354,-150.0,0.00017812,7]
[408064664,1773096632368,-201.079976,0.00017812,7]
[408064665,1773096632379,-252.159952,0.00017812,7]
[408064666,1773096632389,-303.239928,0.00017812,7]
[408064667,1773096632398,-354.319904,0.00017812,7]
[408064668,1773096632409,-405.39988,0.00017812,7]
[408064669,1773096632419,-456.479856,0.00017812,7]
[408064670,1773096632429,-507.559832,0.00017812,7]
[408064671,1773096632438,-558.639808,0.00017812,7]